fUST/lending_fUST_20250514
["ID","MTS","AMOUNT","RATE_DAILY","PERIOD"]
[360972856,1747171871122,-400.0,0.0001589,2]
[360972857,1747171871132,-451.71,0.0001589,2]
[360972858,1747171871141,-400.0,0.0001589,2]
[360972859,1747171871150,-531.31,0.0001589,2]
[360972860,1747171871159,-443.98,0.0001589,2]
[360972861,1747171871169,-405.74,0.0001589,2]
[360972862,1747171871180,-400.0,0.0001589,2]
[360972863,1747171871189,-400.0,0.0001589,2]
[360972864,1747171871199,-1336.54,0.0001589,2]
[360972865,1747171871208,-400.0,0.0001589,2]
[360972866,1747171871217,-733.54,0.0001589,2]
[360972867,1747171871227,-602.94,0.0001589,2]
[360972868,1747171871236,-400.0,0.0001589,2]
[360972869,1747171871246,-1080.08,0.0001589,2]
[360972870,1747171871255,-420.67,0.0001589,2]
[360972871,1747171871265,-400.0,0.0001589,2]
[360972872,1747171871275,-693.78,0.0001589,2]
[360972873,1747171871284,-1431.64,0.0001589,2]
[360972874,1747171871293,-400.0,0.0001589,2]
[360972875,1747171871302,-400.0,0.0001589,2]
[360972876,1747171871312,-654.02,0.0001589,2]
[360972877,1747171871322,-1357.77,0.0001589,2]
[360972878,1747171871332,-1212.64,0.0001589,2]
[360972879,1747171871341,-400.0,0.0001589,2]
[360972880,1747171871350,-2979.51,0.0001589,2]
[360972881,1747171871359,-400.0,0.0001589,2]
[360972882,1747171871369,-400.0,0.0001589,2]
[360972883,1747171871378,-791.3,0.0001589,2]
[360972884,1747171871388,-400.0,0.0001589,2]
[360972885,1747171871397,-6691.48,0.0001589,2]
[360972886,1747171871407,-400.0,0.0001589,2]
[360972887,1747171871416,-3240.36,0.0001589,2]
[360972888,1747171871427,-400.0,0.0001589,2]
[360972889,1747171871437,-796.34,0.0001589,2]
[360972890,1747171871446,-1457.87,0.0001589,2]
[360972891,1747171871456,-400.0,0.0001589,2]
[360972892,1747171871465,-1151.93,0.0001589,2]
[360972893,1747171871475,-575.28,0.0001589,2]
[360972894,1747171871484,-1965.01,0.0001589,2]
[360972895,1747171871493,-400.0,0.0001589,2]
[360972896,1747171871502,-1151.88,0.0001589,2]
[360972897,1747171871512,-523.95,0.0001589,2]
[360972898,1747171871522,-780.64,0.0001589,2]
[360972899,1747171871531,-2254.02,0.0001589,2]
[360972900,1747171871541,-885.61,0.0001589,2]
[360972901,1747171871550,-571.86,0.0001589,2]
[360972902,1747171871561,-400.0,0.0001589,2]
[360972903,1747171871570,-1896.51,0.0001589,2]
[360972904,1747171871579,-1446.73,0.0001589,2]
[360972905,1747171871588,-400.0,0.0001589,2]
[360972906,1747171871598,-400.0,0.0001589,2]
[360972907,1747171871608,-462.19,0.0001589,2]
[360972908,1747171871617,-400.0,0.0001589,2]
[360972909,1747171871626,-2969.24,0.0001589,2]
[360972910,1747171871636,-761.95,0.0001589,2]
[360972911,1747171871646,-3596.39,0.0001589,2]
[360972912,1747171871655,-2929.92,0.0001589,2]
[360972913,1747171871665,-629.36,0.0001589,2]
[360972914,1747171871676,-400.0,0.0001589,2]
[360972915,1747171871685,-6035.7,0.0001589,2]
[360972916,1747171871695,-400.0,0.0001589,2]
[360972917,1747171871705,-720.33,0.0001589,2]
[360972918,1747171871714,-2648.74,0.0001589,2]
[360972919,1747171871723,-1698.59,0.0001589,2]
[360972920,1747171871733,-904.66,0.0001589,2]
[360972921,1747171871743,-458.91,0.0001589,2]
[360972922,1747171871752,-488.71,0.0001589,2]
[360972923,1747171871762,-4244.97,0.0001589,2]
[360972924,1747171871771,-400.0,0.0001589,2]
[360972925,1747171871780,-408.43,0.0001589,2]
[360972926,1747171871791,-424.56,0.0001589,2]
[360972927,1747171871800,-400.0,0.0001589,2]
[360972928,1747171871809,-832.4,0.0001589,2]
[360972929,1747171871819,-400.0,0.0001589,2]
[360972930,1747171871829,-687.37,0.0001589,2]
[360972931,1747171871838,-593.97,0.0001589,2]
[360972932,1747171871848,-933.65,0.0001589,2]
[360972933,1747171871857,-7895.42,0.0001589,2]
[360972934,1747171871870,-729.98,0.0001589,2]
[360972935,1747171871879,-781.28,0.0001589,2]
[360972936,1747171871889,-508.61,0.0001589,2]
[360972937,1747171871898,-1748.5,0.0001589,2]
[360972938,1747171871908,-400.0,0.0001589,2]
[360972939,1747171871918,-968.62,0.0001589,2]
[360972940,1747171871927,-2237.52,0.0001589,2]
[360972941,1747171871936,-400.0,0.0001589,2]
[360972942,1747171871946,-400.0,0.0001589,2]
[360972943,1747171871956,-948.76,0.0001589,2]
[360972944,1747171871966,-12091.79,0.0001589,2]
[360972945,1747171871975,-400.0,0.0001589,2]
[360972946,1747171871985,-3495.32,0.0001589,2]
[360972947,1747171871995,-400.0,0.0001589,2]
[360972948,1747171872005,-1362.33,0.0001589,2]
[360972949,1747171872014,-789.92,0.0001589,2]
[360972950,1747171872023,-4347.15,0.0001589,2]
[360972951,1747171872032,-400.0,0.0001589,2]
[360972952,1747171872042,-907.61,0.0001589,2]
[360972953,1747171872051,-1962.79,0.0001589,2]
[360972954,1747171872060,-2729.47,0.0001589,2]
[360972955,1747171872070,-400.0,0.0001589,2]
[360972956,1747171872079,-400.0,0.0001589,2]
[360972957,1747171872089,-7706.43,0.0001589,2]
[360972958,1747171872098,-657.59,0.0001589,2]
[360972959,1747171872108,-1074.08,0.0001589,2]
[360972960,1747171872118,-2264.38,0.0001589,2]
[360972961,1747171872128,-400.0,0.0001589,2]
[360972962,1747171872137,-400.0,0.0001589,2]
[360972963,1747171872146,-400.0,0.0001589,2]
[360972964,1747171872156,-20000.0,0.00016,2]
[360972965,1747171872165,-500.0,0.00016,2]
[360972966,1747171872176,-9440.47005893,0.00016,2]
[360972967,1747171872185,-208.59351328,0.00016,2]
[360972968,1747171872194,-160.0,0.00016,3]
[360972969,1747171872203,-3000.0,0.00016,2]
[360972970,1747171872213,-894.03,0.00016,2]
[360972971,1747171872223,-997.88380159,0.00016,3]
[360972972,1747171872232,-5000.0,0.00016,2]
[360972973,1747171872241,-5000.0,0.00016,2]
[360972974,1747171872251,-5000.0,0.00016,2]
[360972975,1747171872261,-5000.0,0.00016,2]
[360972976,1747171872271,-2494.98108564,0.00016,2]
[360972977,1747171872281,-160.0,0.00016,3]
[360972978,1747171872290,-18703.07790945,0.00016003,2]
[360972979,1747171872300,-3000.0,0.0001601,2]
[360972980,1747171872310,-3000.0,0.0001602,2]
[360972981,1747171872319,-1000.0,0.00016027,7]
[360972982,1747171872329,-3000.0,0.0001603,2]
[360972983,1747171872339,-3000.0,0.0001604,2]
[360972984,1747171872350,-3000.0,0.0001605,2]
[360972985,1747171872359,-3000.0,0.0001606,2]
[360972986,1747171872368,-3000.0,0.0001607,2]
[360972987,1747171872378,-3000.0,0.0001608,2]
[360972988,1747171872387,-3000.0,0.0001609,2]
[360972989,1747171872397,-3000.0,0.000161,2]
[360972990,1747171872406,-3000.0,0.0001611,2]
[360972991,1747171872415,-3000.0,0.0001612,2]
[360972992,1747171872425,-3000.0,0.0001613,2]
[360972993,1747171872435,-3000.0,0.0001614,2]
[360972994,1747171872444,-3833.35,0.0001615,2]
[360972995,1747171872454,-3069.63,0.00016163,2]
[360972996,1747171872464,-1733.83,0.00016163,2]
[360972997,1747171872474,-1000.0,0.00016164,7]
[360972998,1747171872483,-1997.4,0.00016164,2]
[360972999,1747171872492,-400.0,0.00016164,2]
[360973000,1747171872502,-400.0,0.00016164,2]
[360973001,1747171872511,-400.0,0.00016164,2]
[360973003,1747171872521,-400.0,0.00016164,2]
[360973004,1747171872531,-400.0,0.00016164,2]
[360973005,1747171872542,-702.95,0.00016164,2]
[360973006,1747171872551,-400.0,0.00016164,2]
[360973007,1747171872561,-400.0,0.00016164,2]
[360973008,1747171872571,-654.93,0.00016164,2]
[360973009,1747171872580,-400.0,0.00016164,2]
[360973010,1747171872589,-301.92212099,0.00016164,2]
[360973011,1747171872599,-400.0,0.00016164,2]
[360973012,1747171872608,-400.0,0.00016164,2]
[360973013,1747171872618,-400.0,0.00016164,2]
[360973014,1747171872628,-400.0,0.00016164,2]
[360973015,1747171872638,-439.25,0.00016164,2]
[360973016,1747171872647,-432.91,0.00016164,2]
[360973017,1747171872657,-367.23132688,0.00016164,2]
[360973018,1747171872666,-400.0,0.00016164,2]
[360973019,1747171872676,-847.75,0.00016164,2]
[360973020,1747171872686,-400.0,0.00016164,2]
[360973021,1747171872695,-400.0,0.00016164,2]
[360973022,1747171872705,-656.64,0.00016164,2]
[360973023,1747171872715,-400.0,0.00016164,2]
[360973024,1747171872724,-400.0,0.00016164,2]
[360973025,1747171872733,-400.0,0.00016164,2]
[360973026,1747171872743,-400.0,0.00016164,2]
[360973027,1747171872752,-400.0,0.00016164,2]
[360973028,1747171872762,-167.44416495,0.00016164,2]
[360973029,1747171872772,-400.0,0.00016164,2]
[360973030,1747171872781,-446.11,0.00016164,2]
[360973031,1747171872791,-400.0,0.00016164,2]
[360973032,1747171872800,-400.0,0.00016164,2]
[360973033,1747171872809,-2400.0,0.00016164,2]
[360973034,1747171872819,-465.07,0.00016164,2]
[360973035,1747171872828,-548.45,0.00016164,2]
[360973036,1747171872837,-1210.12,0.00016164,2]
[360973037,1747171872847,-440.46,0.00016164,2]
[360973038,1747171872857,-623.03,0.00016164,2]
[360973039,1747171872868,-400.0,0.00016164,2]
[360973040,1747171872879,-400.0,0.00016164,2]
[360973041,1747171872889,-400.0,0.00016164,2]
[360973042,1747171872899,-728.48,0.00016164,2]
[360973043,1747171872909,-400.0,0.00016164,2]
[360973044,1747171872920,-402.84,0.00016164,2]
[360973045,1747171872932,-400.0,0.00016164,2]
[360973046,1747171872943,-400.0,0.00016164,2]
[360973047,1747171872953,-247.9292583,0.00016164,2]
[360973048,1747171872963,-400.0,0.00016164,2]
[360973049,1747171872973,-400.0,0.00016164,2]
[360973050,1747171872983,-691.47,0.00016164,2]
[360973051,1747171872993,-523.45,0.00016164,2]
[360973052,1747171873003,-969.04,0.00016164,2]
[360973053,1747171873013,-417.64,0.00016164,2]
[360973054,1747171873022,-509.63,0.00016164,2]
[360973055,1747171873032,-665.56,0.00016164,2]
[360973056,1747171873042,-400.0,0.00016164,2]
[360973057,1747171873051,-400.0,0.00016164,2]
[360973058,1747171873061,-400.0,0.00016164,2]
[360973059,1747171873070,-400.0,0.00016164,2]
[360973060,1747171873080,-581.28,0.00016164,2]
[360973061,1747171873089,-400.0,0.00016164,2]
[360973062,1747171873099,-964.08,0.00016164,2]
[360973063,1747171873109,-400.0,0.00016164,2]
[360973064,1747171873118,-400.0,0.00016164,2]
[360973065,1747171873128,-442.88,0.00016164,2]
[360973066,1747171873138,-617.41,0.00016164,2]
[360973067,1747171873147,-400.0,0.00016164,2]
[360973068,1747171873157,-1387.69,0.00016164,2]
[360973069,1747171873167,-587.98,0.00016164,2]
[360973070,1747171873177,-400.0,0.00016164,2]
[360973071,1747171873187,-934.41,0.00016164,2]
[360973072,1747171873196,-400.0,0.00016164,2]
[360973073,1747171873205,-400.0,0.00016164,2]
[360973074,1747171873215,-455.37,0.00016164,2]
[360973075,1747171873225,-255.64372459,0.00016164,2]
[360973076,1747171873235,-715.7,0.00016164,2]
[360973077,1747171873244,-1050.1,0.00016164,2]
[360973078,1747171873254,-460.61,0.00016164,2]
[360973079,1747171873264,-400.0,0.00016164,2]
[360973080,1747171873275,-606.18,0.00016164,2]
[360973081,1747171873284,-1497.29,0.00016164,2]
[360973082,1747171873294,-977.91,0.00016164,2]
[360973083,1747171873304,-400.0,0.00016164,2]
[360973084,1747171873314,-400.0,0.00016164,2]
[360973085,1747171873324,-400.0,0.00016164,2]
[360973086,1747171873334,-670.12,0.00016164,2]
[360973087,1747171873344,-400.0,0.00016164,2]
[360973088,1747171873354,-400.0,0.00016164,2]
[360973089,1747171873364,-649.09,0.00016164,2]
[360973090,1747171873373,-400.0,0.00016164,2]
[360973091,1747171873383,-204.97833279,0.00016164,2]
[360973092,1747171873393,-400.0,0.00016164,2]
[360973093,1747171873402,-560.18183602,0.00016164,2]
[360973094,1747171873412,-294.29023953,0.00016164,2]
[360973095,1747171873422,-825.86,0.00016164,2]
[360973096,1747171873433,-594.55,0.00016164,2]
[360973097,1747171873443,-631.73,0.00016164,2]
[360973098,1747171873452,-400.63,0.00016164,2]
[360973099,1747171873462,-2082.85,0.00016164,2]
[360973100,1747171873471,-1700.28,0.00016164,2]
[360973101,1747171873481,-404.66,0.00016164,2]
[360973102,1747171873491,-400.0,0.00016164,2]
[360973103,1747171873501,-400.0,0.00016164,2]
[360973104,1747171873511,-498.37,0.00016164,2]
[360973105,1747171873521,-508.09,0.00016164,2]
[360973106,1747171873531,-282.26850012,0.00016164,2]
[360973107,1747171873541,-1219.22,0.00016164,2]
[360973108,1747171873550,-400.0,0.00016164,2]
[360973109,1747171873560,-400.0,0.00016164,2]
[360973110,1747171873570,-2779.5,0.00016164,2]
[360973111,1747171873579,-400.0,0.00016164,2]
[360973112,1747171873589,-654.77,0.00016164,2]
[360973113,1747171873599,-1011.29,0.00016164,2]
[360973114,1747171873609,-400.0,0.00016164,2]
[360973115,1747171873619,-400.0,0.00016164,2]
[360973116,1747171873629,-400.0,0.00016164,2]
[360973117,1747171873639,-1757.96,0.00016164,2]
[360973118,1747171873648,-828.55,0.00016164,2]
[360973119,1747171873658,-639.16,0.00016164,2]
[360973120,1747171873668,-910.85,0.00016164,2]
[360973121,1747171873679,-1432.24,0.00016164,2]
[360973122,1747171873689,-400.0,0.00016164,2]
[360973123,1747171873699,-1271.55,0.00016164,2]
[360973124,1747171873709,-1964.72,0.00016164,2]
[360973125,1747171873719,-1346.18,0.00016164,2]
[360973126,1747171873730,-1807.95,0.00016164,2]
[360973127,1747171873739,-1872.93,0.00016164,2]
[360973128,1747171873750,-2038.91,0.00016164,2]
[360973129,1747171873760,-583.95,0.00016164,2]
[360973130,1747171873770,-400.0,0.00016164,2]
[360973131,1747171873779,-400.0,0.00016164,2]
[360973132,1747171873797,-444.52,0.00016164,2]
[360973133,1747171873807,-400.0,0.00016164,2]
[360973134,1747171873818,-777.75,0.00016164,2]
[360973135,1747171873828,-1133.72,0.00016164,2]
[360973136,1747171873839,-1278.45,0.00016164,2]
[360973137,1747171873849,-2383.74,0.00016164,2]
[360973138,1747171873860,-1367.7,0.00016164,2]
[360973139,1747171873872,-2669.62,0.00016164,2]
[360973140,1747171873883,-1343.88,0.00016164,2]
[360973141,1747171873894,-6469.5,0.00016164,2]
[360973142,1747171873904,-400.0,0.00016164,2]
[360973143,1747171873916,-1188.47,0.00016164,2]
[360973144,1747171873926,-400.0,0.00016164,2]
[360973145,1747171873937,-1336.58,0.00016164,2]
[360973146,1747171873949,-400.0,0.00016164,2]
[360973147,1747171873960,-400.0,0.00016164,2]
[360973148,1747171873970,-400.0,0.00016164,2]
[360973149,1747171873980,-400.0,0.00016164,2]
[360973150,1747171873990,-451.71,0.00016164,2]
[360973151,1747171874001,-400.0,0.00016164,2]
[360973152,1747171874011,-531.31,0.00016164,2]
[360973153,1747171874021,-443.98,0.00016164,2]
[360973154,1747171874032,-405.74,0.00016164,2]
[360973155,1747171874042,-400.0,0.00016164,2]
[360973156,1747171874052,-400.0,0.00016164,2]
[360973157,1747171874063,-1336.54,0.00016164,2]
[360973158,1747171874074,-400.0,0.00016164,2]
[360973159,1747171874084,-733.54,0.00016164,2]
[360973160,1747171874095,-602.94,0.00016164,2]
[360973161,1747171874107,-400.0,0.00016164,2]
[360973162,1747171874117,-1080.08,0.00016164,2]
[360973163,1747171874128,-420.67,0.00016164,2]
[360973164,1747171874139,-400.0,0.00016164,2]
[360973165,1747171874151,-693.78,0.00016164,2]
[360973166,1747171874161,-1431.64,0.00016164,2]
[360973167,1747171874171,-400.0,0.00016164,2]
[360973168,1747171874182,-654.02,0.00016164,2]
[360973169,1747171874193,-1357.77,0.00016164,2]
[360973170,1747171874204,-1212.64,0.00016164,2]
[360973171,1747171874214,-400.0,0.00016164,2]
[360973172,1747171874225,-2979.51,0.00016164,2]
[360973173,1747171874236,-400.0,0.00016164,2]
[360973174,1747171874247,-400.0,0.00016164,2]
[360973175,1747171874257,-791.3,0.00016164,2]
[360973176,1747171874268,-400.0,0.00016164,2]
[360973177,1747171874279,-6691.48,0.00016164,2]
[360973178,1747171874289,-400.0,0.00016164,2]
[360973179,1747171874300,-3240.36,0.00016164,2]
[360973180,1747171874311,-400.0,0.00016164,2]
[360973181,1747171874321,-796.34,0.00016164,2]
[360973182,1747171874331,-1457.87,0.00016164,2]
[360973183,1747171874342,-400.0,0.00016164,2]
[360973184,1747171874352,-1151.93,0.00016164,2]
[360973185,1747171874364,-575.28,0.00016164,2]
[360973186,1747171874375,-1965.01,0.00016164,2]
[360973187,1747171874385,-400.0,0.00016164,2]
[360973188,1747171874396,-1151.88,0.00016164,2]
[360973189,1747171874410,-523.95,0.00016164,2]
[360973190,1747171874420,-780.64,0.00016164,2]
[360973191,1747171874431,-2254.02,0.00016164,2]
[360973192,1747171874441,-885.61,0.00016164,2]
[360973193,1747171874452,-571.86,0.00016164,2]
[360973194,1747171874462,-400.0,0.00016164,2]
[360973195,1747171874472,-1896.51,0.00016164,2]
[360973196,1747171874483,-1446.73,0.00016164,2]
[360973197,1747171874493,-400.0,0.00016164,2]
[360973198,1747171874505,-400.0,0.00016164,2]
[360973199,1747171874515,-400.0,0.00016164,2]
[360973200,1747171874526,-2969.24,0.00016164,2]
[360973201,1747171874537,-3596.39,0.00016164,2]
[360973202,1747171874548,-761.95,0.00016164,2]
[360973203,1747171874558,-2929.92,0.00016164,2]
[360973204,1747171874569,-629.36,0.00016164,2]
[360973205,1747171874580,-400.0,0.00016164,2]
[360973206,1747171874591,-6035.7,0.00016164,2]
[360973207,1747171874602,-400.0,0.00016164,2]
[360973208,1747171874612,-720.33,0.00016164,2]
[360973209,1747171874623,-2648.74,0.00016164,2]
[360973210,1747171874634,-1698.59,0.00016164,2]
[360973211,1747171874644,-904.66,0.00016164,2]
[360973212,1747171874657,-458.91,0.00016164,2]
[360973213,1747171874667,-488.71,0.00016164,2]
[360973214,1747171874678,-4244.97,0.00016164,2]
[360973215,1747171874689,-400.0,0.00016164,2]
[360973216,1747171874700,-408.43,0.00016164,2]
[360973217,1747171874710,-424.56,0.00016164,2]
[360973218,1747171874721,-400.0,0.00016164,2]
[360973219,1747171874731,-832.4,0.00016164,2]
[360973220,1747171874742,-400.0,0.00016164,2]
[360973221,1747171874752,-687.37,0.00016164,2]
[360973222,1747171874763,-593.97,0.00016164,2]
[360973223,1747171874774,-933.65,0.00016164,2]
[360973224,1747171874784,-7895.42,0.00016164,2]
[360973225,1747171874795,-729.98,0.00016164,2]
[360973226,1747171874805,-781.28,0.00016164,2]
[360973227,1747171874816,-508.61,0.00016164,2]
[360973228,1747171874827,-1748.5,0.00016164,2]
[360973229,1747171874838,-480.41790255,0.00016164,2]
[360973230,1747171874848,-968.62,0.00016164,2]
[360973231,1747171874859,-2237.52,0.00016164,2]
[360973232,1747171874872,-400.0,0.00016164,2]
[360973233,1747171874883,-400.0,0.00016164,2]
[360973234,1747171874893,-948.76,0.00016164,2]
[360973235,1747171874904,-12091.79,0.00016164,2]
[360973236,1747171874915,-400.0,0.00016164,2]
[360973237,1747171874925,-3495.32,0.00016164,2]
[360973238,1747171874936,-400.0,0.00016164,2]
[360973239,1747171874946,-1362.33,0.00016164,2]
[360973240,1747171874957,-789.92,0.00016164,2]
[360973241,1747171874967,-4347.15,0.00016164,2]
[360973242,1747171874978,-400.0,0.00016164,2]
[360973243,1747171874988,-907.61,0.00016164,2]
[360973244,1747171874998,-1962.79,0.00016164,2]
[360973245,1747171875009,-2729.47,0.00016164,2]
[360973246,1747171875018,-400.0,0.00016164,2]
[360973247,1747171875029,-400.0,0.00016164,2]
[360973248,1747171875039,-7706.43,0.00016164,2]
[360973249,1747171875049,-657.59,0.00016164,2]
[360973250,1747171875060,-1074.08,0.00016164,2]
[360973251,1747171875070,-2264.38,0.00016164,2]
[360973252,1747171875081,-400.0,0.00016164,2]
[360973253,1747171875091,-400.0,0.00016164,2]
[360973254,1747171875102,-400.0,0.00016164,2]
[360973255,1747171875112,-223.0315306,0.00016179,2]
[360973256,1747171875123,-155.0,0.0001618,2]
[360973257,1747171875133,-205.0,0.000162,2]
[360973258,1747171875145,-3919.04120904,0.00016216,2]
[360973259,1747171875155,-1000.0,0.00016301,7]
[360973261,1747171875165,-3069.63,0.00016437,2]
[360973262,1747171875176,-1733.83,0.00016437,2]
[360973264,1747171875458,-1000.0,0.00016438,7]
[360973265,1747171875504,-1997.4,0.00016438,2]
[360973266,1747171875515,-453.75566152,0.00016438,2]
[360973267,1747171875525,-535.87691246,0.00016438,2]
[360973268,1747171875535,-400.0,0.00016438,2]
[360973269,1747171875546,-400.0,0.00016438,2]
[360973270,1747171875556,-659.1,0.00016438,2]
[360973271,1747171875566,-659.1,0.00016438,2]
[360973272,1747171875576,-659.1,0.00016438,2]
[360973273,1747171875587,-659.1,0.00016438,2]
[360973274,1747171875597,-659.1,0.00016438,2]
[360973275,1747171875607,-659.1,0.00016438,2]
[360973276,1747171875616,-659.1,0.00016438,2]
[360973277,1747171875627,-659.1,0.00016438,2]
[360973278,1747171875637,-659.1,0.00016438,2]
[360973279,1747171875646,-659.1,0.00016438,2]
[360973280,1747171875656,-659.1,0.00016438,2]
[360973281,1747171875666,-419.14627447,0.00016438,2]
[360973282,1747171875677,-702.95,0.00016438,2]
[360973283,1747171875687,-400.0,0.00016438,2]
[360973284,1747171875697,-400.0,0.00016438,2]
[360973285,1747171875707,-654.93,0.00016438,2]
[360973286,1747171875717,-400.0,0.00016438,2]
[360973287,1747171875727,-400.0,0.00016438,2]
[360973288,1747171875737,-400.0,0.00016438,2]
[360973289,1747171875748,-400.0,0.00016438,2]
[360973290,1747171875758,-400.0,0.00016438,2]
[360973291,1747171875768,-439.25,0.00016438,2]
[360973292,1747171875778,-432.91,0.00016438,2]
[360973293,1747171875788,-400.0,0.00016438,2]
[360973294,1747171875797,-847.75,0.00016438,2]
[360973295,1747171875808,-400.0,0.00016438,2]
[360973296,1747171875825,-400.0,0.00016438,2]
[360973297,1747171875835,-656.64,0.00016438,2]
[360973298,1747171875847,-400.0,0.00016438,2]
[360973299,1747171875857,-400.0,0.00016438,2]
[360973300,1747171875871,-400.0,0.00016438,2]
[360973301,1747171875881,-400.0,0.00016438,2]
[360973302,1747171875892,-400.0,0.00016438,2]
[360973303,1747171875903,-400.0,0.00016438,2]
[360973304,1747171875915,-446.11,0.00016438,2]
[360973305,1747171875926,-400.0,0.00016438,2]
[360973306,1747171875937,-465.07,0.00016438,2]
[360973307,1747171875948,-548.45,0.00016438,2]
[360973308,1747171875959,-1210.12,0.00016438,2]
[360973309,1747171875970,-440.46,0.00016438,2]
[360973310,1747171875980,-1000.0,0.00016438,2]
[360973311,1747171875991,-1000.0,0.00016438,2]
[360973312,1747171876001,-1000.0,0.00016438,2]
[360973313,1747171876012,-1000.0,0.00016438,2]
[360973314,1747171876023,-1000.0,0.00016438,2]
[360973315,1747171876034,-1000.0,0.00016438,2]
[360973316,1747171876045,-793.35220662,0.00016438,2]
[360973317,1747171876055,-623.03,0.00016438,2]
[360973318,1747171876067,-400.0,0.00016438,2]
[360973319,1747171876077,-400.0,0.00016438,2]
[360973320,1747171876088,-400.0,0.00016438,2]
[360973321,1747171876099,-728.48,0.00016438,2]
[360973322,1747171876110,-400.0,0.00016438,2]
[360973323,1747171876121,-402.84,0.00016438,2]
[360973324,1747171876135,-400.0,0.00016438,2]
[360973325,1747171876145,-400.0,0.00016438,2]
[360973326,1747171876156,-400.0,0.00016438,2]
[360973327,1747171876166,-400.0,0.00016438,2]
[360973328,1747171876176,-691.47,0.00016438,2]
[360973329,1747171876187,-523.45,0.00016438,2]
[360973330,1747171876199,-969.04,0.00016438,2]
[360973331,1747171876209,-417.64,0.00016438,2]
[360973332,1747171876220,-509.63,0.00016438,2]
[360973333,1747171876230,-665.56,0.00016438,2]
[360973334,1747171876241,-400.0,0.00016438,2]
[360973335,1747171876251,-400.0,0.00016438,2]
[360973336,1747171876262,-502.86623398,0.00016438,2]
[360973338,1747171876272,-400.0,0.00016438,2]
[360973339,1747171876282,-581.28,0.00016438,2]
[360973340,1747171876292,-400.0,0.00016438,2]
[360973341,1747171876303,-964.08,0.00016438,2]
[360973342,1747171876314,-400.0,0.00016438,2]
[360973343,1747171876325,-400.0,0.00016438,2]
[360973344,1747171876335,-442.88,0.00016438,2]
[360973345,1747171876347,-617.41,0.00016438,2]
[360973346,1747171876357,-400.0,0.00016438,2]
[360973347,1747171876367,-1387.69,0.00016438,2]
[360973348,1747171876378,-587.98,0.00016438,2]
[360973349,1747171876388,-400.0,0.00016438,2]
[360973350,1747171876399,-934.41,0.00016438,2]
[360973351,1747171876409,-400.0,0.00016438,2]
[360973352,1747171876419,-400.0,0.00016438,2]
[360973353,1747171876429,-455.37,0.00016438,2]
[360973354,1747171876440,-715.7,0.00016438,2]
[360973355,1747171876450,-1050.1,0.00016438,2]
[360973356,1747171876460,-460.61,0.00016438,2]
[360973357,1747171876470,-400.0,0.00016438,2]
[360973358,1747171876480,-606.18,0.00016438,2]
[360973359,1747171876490,-1497.29,0.00016438,2]